[Event "CCT Final-RR 2024"]
[Site "Oslo"]
[Date "2024.12.18"]
[Round "4"]
[White "Lazavik, Denis"]
[Black "Aronian, Levon"]
[Result "0-1"]
[ECO "A05"]
[WhiteElo "2578"]
[BlackElo "2747"]
[Annotator "TA"]
[PlyCount "150"]
[EventDate "2024.12.11"]
[EventType "tourn"]
[EventCountry "NOR"]
[SourceTitle "playchess.com"]
[Source "ChessBase"]
[SourceQuality "1"]
[TimeControl "600+2"]

{[%evp 75,150,0,0,0,0,0,0,0,68,0,32,0,0,0,0,0,0,0,0,0,0,0,0,-50,-50,-50,-40,-52,0,0,0,0,0,0,0,0,0,0,0,0,0,0,0,0,0,-8,0,-8,-8,-8,-8,-120,0,-195,-106,-80,-8,-8,-8,-515,-384,-255,0,0,0,0,0,0,0,0,0,-8,0,-29979,-29980,-29982,-29983]} 1. Nf3 {[%emt 0:00:06]} Nf6 {[%emt 0:03:20]} 2. b3 {[%emt 0:00:03]} c5 {[%emt 0:00:08]} 3. Bb2 {[%emt 0:00:03]} Nc6 {[%emt 0:00:03]} 4. e3 {[%emt 0:00:05]} g6 {[%emt 0:00:06]} 5. Bb5 {[%emt 0:00:07]} Bg7 {[%emt 0:00:04]} 6. O-O {[%emt 0:00:04]} O-O {[%emt 0:00:03]} 7. Re1 {[%emt 0:00:03]} d6 {[%emt 0:00:14]} 8. d4 {[%emt 0:00:05]} cxd4 {[%emt 0:00:05]} 9. exd4 {[%emt 0:00:03]} Bg4 {[%emt 0:00:04]} 10. Nbd2 {[%emt 0:00:07]} Rc8 {[%emt 0:00:05]} 11. h3 {[%emt 0:00:06]} Bf5 {[%emt 0:00:04]} 12. a3 {[%emt 0:00:11]} a6 {[%emt 0:00:04]} 13. Bf1 {[%emt 0:00:07]} d5 {[%emt 0:00:05]} 14. c3 {[%emt 0:00:08]} Ne4 {[%emt 0:00:07]} 15. Nh4 {[%emt 0:00:48]} e6 {[%emt 0:00:04]} 16. Nxf5 {[%emt 0:00:05]} exf5 {[%emt 0:00:03]} 17. Nf3 {[%emt 0:00:04]} Qb6 {[%emt 0:00:10]} 18. b4 {[%emt 0:00:08]} Na5 {[%emt 0:00:09]} 19. Rc1 {[%emt 0:00:49]} Nc4 {[%emt 0:00:04]} 20. Bxc4 {[%emt 0:00:04]} Rxc4 {[%emt 0:00:04]} 21. Nd2 {[%emt 0:00:03]} Rc6 {[%emt 0:00:15]} 22. Nb3 {[%emt 0:00:18]} Qc7 {[%emt 0:00:28]} 23. Nc5 {[%emt 0:00:05]} a5 {[%emt 0:00:08]} 24. b5 {[%emt 0:01:04]} Rd6 {[%emt 0:00:05]} 25. a4 {[%emt 0:00:17]} Rc8 {[%emt 0:00:07]} 26. Nd3 {[%emt 0:00:11]} Rdd8 {[%emt 0:00:13]} 27. f3 {[%emt 0:00:06]} Nd6 {[%emt 0:00:07]} 28. Ra1 {[%emt 0:00:45]} Bh6 {[%emt 0:00:24]} 29. Bc1 {[%emt 0:00:05]} Bxc1 {[%emt 0:00:03]} 30. Rxc1 {[%emt 0:00:03]} Nc4 {[%emt 0:00:04]} 31. Qe2 {[%emt 0:00:07]} Qd6 {[%emt 0:00:19]} 32. Nc5 {[%emt 0:00:23]} Rc7 {[%emt 0:00:10]} 33. Qf2 {[%emt 0:00:06]} b6 {[%emt 0:00:34]} 34. Nd3 {[%emt 0:00:03]} Re7 {[%emt 0:00:03]} 35. Rxe7 {[%emt 0:00:08]} Qxe7 {[%emt 0:00:03]} 36. Re1 {[%emt 0:00:03]} Qg5 {[%emt 0:00:03]} 37. h4 {[%emt 0:00:08]} Qf6 {[%emt 0:00:06]} 38. Nf4 {[%emt 0:00:21]} Qd6 {[%emt 0:00:30]} 39. g3 {[%emt 0:00:05]} Qa3 {[%emt 0:00:21]} 40. Qc2 {[%emt 0:00:03]} Kf8 {[%emt 0:00:06]} 41. Kf2 {[%emt 0:00:11]} Qb2 {[%emt 0:00:07]} (41... Rd6 $11) 42. Qe2 {[%emt 0:00:40]} ({White should try} 42. Qxb2 $14 Nxb2 43. Ra1) 42... Rd6 {[%emt 0:00:19]} 43. h5 {[%emt 0:00:24]} g5 {[%emt 0:00:18]} 44. Nd3 $1 {[%emt 0:00:02]} Qxe2+ {[%emt 0:00:08]} 45. Rxe2 {[%emt 0:00:03]} Re6 {[%emt 0:00:16]} 46. Ne5 {[%emt 0:00:24]} Nxe5 {[%emt 0:00:09]} 47. dxe5 {[%emt 0:00:03]} f4 {[%emt 0:00:03]} 48. gxf4 {[%emt 0:00:21]} gxf4 {[%emt 0:00:03]} 49. c4 {[%emt 0:00:07]} (49. Ke1 $11) 49... dxc4 $15 {[%emt 0:00:08]} 50. Re4 $1 {[%emt 0:00:02]} c3 {[%emt 0:00:02]} 51. Ke2 {[%emt 0:00:03]} f5 {[%emt 0:00:03]} (51... f6 $1 $15 52. Rxf4 Rxe5+ 53. Kd3 Kf7 (53... Rxh5 54. Rxf6+ Ke7 55. Rxb6 $11)) 52. Rxf4 $11 {[%emt 0:00:16]} Rxe5+ {[%emt 0:00:03]} 53. Kd3 {[%emt 0:00:03]} Rc5 {[%emt 0:00:02]} 54. Kc2 $1 {[%emt 0:00:03]} Ke7 {[%emt 0:00:08]} 55. Rd4 {[%emt 0:00:05]} Re5 {[%emt 0:00:05]} 56. Kxc3 {[%emt 0:00:08]} Re3+ {[%emt 0:00:06]} 57. Kc4 {[%emt 0:00:13]} Rxf3 {[%emt 0:00:07]} 58. Kd5 {[%emt 0:00:03]} Rc3 {[%emt 0:00:03]} 59. Ke5 {[%emt 0:00:07]} Rc5+ {[%emt 0:00:03]} 60. Kf4 $1 {[%emt 0:00:02]} h6 {[%emt 0:00:03]} 61. Rd2 {[%emt 0:00:09]} Ke6 {[%emt 0:00:02]} 62. Rg2 {[%emt 0:00:07]} Rc4+ {[%emt 0:00:04]} 63. Ke3 {[%emt 0:00:02]} (63. Kf3 $11) 63... Rg4 {[%emt 0:00:08]} (63... Rxa4 $6 64. Rg6+ Kd5 65. Rxh6 $11) (63... f4+ $17 64. Kf3 Rxa4 65. Rg6+ Kf5) 64. Rc2 $2 {[%emt 0:00:02] [#]} (64. Rxg4 $1 $11 fxg4 65. Kf4) 64... Rxa4 {[%emt 0:00:02]} (64... Re4+ 65. Kf3 $11) ({Black should play} 64... Kf6 $1 $19 65. Rc6+ Kg5 66. Rxb6 Rxa4) 65. Rc6+ $17 {[%emt 0:00:02]} Ke5 {[%emt 0:00:02]} (65... Kd5 $17 66. Rxb6 Re4+ 67. Kd3 Re6 (67... Rd4+ 68. Kc3 $11)) 66. Rxh6 {[%emt 0:00:04]} Rh4 {[%emt 0:00:03]} 67. Rh8 $2 {[%emt 0:00:13][%mdl 8192]} (67. Rxb6 $11 Rxh5 68. Kd3) 67... a4 {[%emt 0:00:04]} 68. h6 {[%emt 0:00:02]} Kf6 $2 {[%emt 0:00:02]} (68... a3 $19 {and ...Rh1 would now be decisive} 69. Kf3 a2 70. Re8+ Kf6) 69. Rb8 $11 {[%emt 0:00:03]} a3 {[%emt 0:00:07]} 70. Rxb6+ {[%emt 0:00:02]} Ke5 {[%emt 0:00:03]} 71. Ra6 {[%emt 0:00:06]} a2 {[%emt 0:00:02]} 72. b6 {[%emt 0:00:09]} Rh3+ {[%emt 0:00:10]} 73. Kd2 {[%emt 0:00:09]} Kd6 {[%emt 0:00:01]} 74. Rxa2 $2 {[%emt 0:00:15][%mdl 8192]} ({Don't blunder} 74. b7+ $2 Kc7 75. h7 Rxh7 $19 (75... Kxb7 76. Rxa2 Rxh7 77. Rc2 $11)) (74. Kc2 $11) 74... Rh2+ {[%emt 0:00:02]} ({Not} 74... Rxh6 75. Ra7 $11) 75. Kc3 {[%emt 0:00:03]} Rxa2 {[%emt 0:00:02]} 0-1

[Event "CCT Final-RR 2024"]
[Site "Oslo"]
[Date "2024.12.18"]
[Round "5"]
[White "Carlsen, Magnus"]
[Black "Firouzja, Alireza"]
[Result "1/2-1/2"]
[ECO "A34"]
[WhiteElo "2831"]
[BlackElo "2763"]
[Annotator "RC"]
[PlyCount "76"]
[EventDate "2024.12.11"]
[EventType "tourn"]
[EventCountry "NOR"]
[SourceTitle "playchess.com"]
[Source "ChessBase"]
[SourceQuality "1"]
[TimeControl "600+2"]

1. Nf3 {[%emt 0:00:01]} Nf6 {[%emt 0:00:09]} 2. c4 {[%emt 0:00:02]} c5 {[%emt 0:00:14]} 3. g3 {[%emt 0:00:05]} Nc6 {[%emt 0:00:09]} 4. Bg2 {[%emt 0:00:02]} d5 {[%emt 0:00:03]} 5. cxd5 {[%emt 0:00:01]} Nxd5 {[%emt 0:00:01]} 6. Nc3 {[%emt 0:00:02]} g6 {[%emt 0:00:07]} 7. h4 {[%emt 0:00:02]} h6 {[%emt 0:00:05]} 8. O-O {[%emt 0:00:02]} Bg7 {[%emt 0:00:13]} 9. d4 {[%emt 0:00:03]} cxd4 {[%emt 0:00:29]} 10. Nxd4 {[%emt 0:00:03]} Nxd4 {[%emt 0:00:31]} 11. Nxd5 {[%emt 0:00:43]} Bh3 {[%emt 0:00:18]} 12. Bxh3 {[%emt 0:02:14]} Qxd5 {[%emt 0:00:03]} 13. e3 {[%emt 0:00:35]} Nf3+ {[%emt 0:00:06]} 14. Kh1 {[%emt 0:00:01]} Qxd1 {[%emt 0:00:10]} 15. Rxd1 {[%emt 0:00:03]} O-O {[%emt 0:00:46]} 16. Kg2 {[%emt 0:01:34]} Ne5 {[%emt 0:00:06]} 17. b3 {[%emt 0:00:20]} Nd3 {[%emt 0:01:47]} 18. Rb1 {[%emt 0:00:01]} Rfd8 {[%emt 0:00:08]} 19. Ba3 {[%emt 0:00:06]} e6 {[%emt 0:00:03]} 20. Kf1 {[%emt 0:00:39]} Rac8 {[%emt 0:01:02]} 21. Bg2 {[%emt 0:01:40]} b5 {[%emt 0:01:02]} 22. Be7 {[%emt 0:00:24]} Rd7 {[%emt 0:01:12]} 23. Bb4 {[%emt 0:00:01]} Bc3 {[%emt 0:00:28]} 24. Bxc3 {[%emt 0:00:19]} Rxc3 {[%emt 0:00:01]} 25. Be4 {[%emt 0:00:15]} b4 {[%emt 0:00:28]} 26. Bxd3 {[%emt 0:00:15]} Rdxd3 {[%emt 0:00:06]} 27. Rxd3 {[%emt 0:00:01]} Rxd3 {[%emt 0:00:00]} 28. Rb2 {[%emt 0:00:03]} Rc3 {[%emt 0:00:15]} 29. Rd2 {[%emt 0:00:02]} a5 {[%emt 0:00:08]} 30. Rd8+ {[%emt 0:00:01]} Kg7 {[%emt 0:00:01]} 31. Ra8 {[%emt 0:00:01]} Rc5 {[%emt 0:00:01]} 32. Ra7 {[%emt 0:00:01]} g5 {[%emt 0:00:02]} 33. hxg5 {[%emt 0:00:01]} hxg5 {[%emt 0:00:00]} 34. g4 {[%emt 0:00:02]} Kg6 {[%emt 0:00:04]} 35. Ra6 {[%emt 0:00:02]} Kf6 {[%emt 0:00:02]} 36. Kg2 {[%emt 0:00:12]} Ke5 {[%emt 0:00:04]} 37. Kf3 {[%emt 0:00:06]} Kf6 {[%emt 0:00:09]} 38. Kg3 {[%emt 0:00:19]} Kg6 {[%emt 0:00:07]} 1/2-1/2

[Event "CCT Final-RR 2024"]
[Site "Oslo"]
[Date "2024.12.18"]
[Round "5"]
[White "Firouzja, Alireza"]
[Black "Carlsen, Magnus"]
[Result "1/2-1/2"]
[ECO "C55"]
[WhiteElo "2763"]
[BlackElo "2831"]
[Annotator "TA"]
[PlyCount "108"]
[EventDate "2024.12.11"]
[EventType "tourn"]
[EventCountry "NOR"]
[SourceTitle "playchess.com"]
[Source "ChessBase"]
[SourceQuality "1"]
[TimeControl "600+2"]

{[%evp 11,108,17,10,9,22,19,20,24,25,23,18,24,19,13,33,18,41,45,68,38,66,41,57,25,32,20,27,14,39,49,88,76,73,39,45,0,0,0,0,0,0,0,11,12,0,9,8,14,6,20,19,14,15,25,77,80,81,77,75,44,43,38,34,24,31,29,30,31,26,29,12,18,61,61,61,60,50,38,38,38,38,8,8,8,8,8,8,0,0,0,8,8,8,8,8,8,8,8,8]} 1. e4 {[%emt 0:00:01]} e5 {[%emt 0:00:04]} 2. Nf3 {[%emt 0:00:02]} Nc6 {[%emt 0:00:01]} 3. Bc4 {[%emt 0:00:01]} Nf6 {[%emt 0:00:03]} 4. d3 {[%emt 0:00:01]} Be7 {[%emt 0:00:01]} 5. O-O {[%emt 0:00:05]} O-O {[%emt 0:00:03]} 6. Nc3 {[%emt 0:00:01][%cal Bb1c3,Bc3e2,Be2g3][%mdl 32]} d6 {[%emt 0:00:04]} 7. a4 {[%emt 0:00:02]} a5 {[%emt 0:00:16]} 8. Re1 {[%emt 0:00:03]} h6 {[%emt 0:00:10]} 9. h3 {[%emt 0:00:02]} Re8 {[%emt 0:00:11]} 10. Ne2 {[%emt 0:00:04]} Bf8 {[%emt 0:00:05]} 11. Ng3 {[%emt 0:00:07]} Be6 {[%emt 0:00:02]} 12. Bb5 {[%emt 0:00:03]} Bd7 {[%emt 0:00:02]} 13. c3 {[%emt 0:00:08][%cal Bc2c3,Bc3c4][%mdl 32]} Ne7 {[%emt 0:00:28]} 14. d4 {[%emt 0:00:02]} Bxb5 {[%emt 0:00:24]} 15. axb5 {[%emt 0:00:01]} exd4 {[%emt 0:00:05]} 16. Nxd4 {[%emt 0:00:27]} Ng6 {[%emt 0:00:10]} 17. c4 {[%emt 0:00:18]} c6 {[%emt 0:01:28]} 18. bxc6 {[%emt 0:02:30]} bxc6 {[%emt 0:00:01]} 19. Nxc6 {[%emt 0:00:03]} Qc7 {[%emt 0:00:01]} 20. Qa4 {[%emt 0:00:04][%cal Oc1d2]} d5 {[%emt 0:00:28]} 21. cxd5 {[%emt 0:00:10]} Nxd5 {[%emt 0:00:02][%cal Bf6d5,Bd5f4,Bf4g2][%mdl 32]} 22. Bd2 {[%emt 0:00:19]} (22. Nxa5 $6 Nb4 23. Bd2 Nd3 $15) 22... Ndf4 {[%emt 0:00:02]} 23. Qb5 {[%emt 0:01:03][%cal Oe1d1] Repels Nd3} (23. Nxa5 Nd3 24. Re2 Rec8 $11) 23... Nxg2 $1 {[%emt 0:01:58]} 24. Kxg2 {[%emt 0:00:04][%cal Bg1g2,Bg2f1,Bf1e2,Be2d3][%mdl 32]} Qd7 {[%emt 0:00:21] Wards off Nf5} 25. Be3 {[%emt 0:00:58][%cal Og3f5]} Nh4+ {[%emt 0:00:04]} 26. Kf1 {[%emt 0:00:01] And now Nf5 would win.} Rab8 {[%emt 0:00:20]} 27. Qd5 {[%emt 0:01:22]} (27. Nxb8 $2 Qxb5+ 28. Re2 Rxb8 $19 (28... Qxb8 $2 29. f4 $19)) 27... Qxh3+ {[%emt 0:00:02]} 28. Ke2 {[%emt 0:00:00]} Rxb2+ {[%emt 0:00:02]} 29. Kd3 $1 {[%emt 0:00:03][%cal Oa1b1]} Ng2 {[%emt 0:01:04][%cal Ob2f2]} 30. Re2 {[%emt 0:00:50]} Rb7 {[%emt 0:01:29]} 31. Qf5 {[%emt 0:00:46]} (31. Rxa5 $2 Rd7 32. Rea2 Rxd5+ 33. Rxd5 Nxe3 34. Kxe3 Qe6 $19) 31... Qh4 $1 {[%emt 0:00:47][%cal Oe8d8] White must now prevent ...Rd8+!.} 32. Rh1 $1 {[%emt 0:00:05]} (32. Qxa5 Rb3+ 33. Kd2 Qf6 $19) 32... Nxe3 {[%emt 0:00:18]} (32... Rb3+ $2 33. Kc2 $18 (33. Kd4 Rxe4+ 34. Qxe4 Qf6+ 35. Kd5 Rc3 $11)) (32... Rd8+ $1 $11 33. Bd4 (33. Nxd8 $2 Qxd8+ 34. Bd4 Rb4 $19) 33... Nf4+ 34. Kc2 Qxh1 35. Nxh1 Nxe2) 33. Rxe3 {[%emt 0:00:09]} (33. Rxh4 Rb3+ 34. Kd2 Rd8+ 35. Nxd8 Bb4+ 36. Kc1 Ba3+ 37. Kd2 (37. Rb2 Bxb2+ 38. Kd2 Nxf5 $14) 37... Bb4+ 38. Kc1 Ba3+ 39. Kd2 Bb4+ $14) 33... Qg5 {[%emt 0:00:02]} 34. Qxg5 {[%emt 0:00:05]} (34. Qxa5 Qf6 35. Nd4 Bb4 $19 (35... Qxf2 36. Nge2 $15)) ({Inferior is} 34. Nxa5 Qd8+ 35. Ke2 Rb2+ 36. Kf3 Re6 $17 (36... g6 37. Qf4 $17)) 34... hxg5 {[%emt 0:00:02]} 35. Nxa5 {[%emt 0:00:08]} Rd8+ $1 {[%emt 0:00:06]} 36. Ke2 {[%emt 0:00:06]} Rb2+ {[%emt 0:00:03]} 37. Kf3 {[%emt 0:00:01] Threatening Nc4.} Bc5 $1 {[%emt 0:00:01]} 38. Nc4 {[%emt 0:00:54]} Rc2 {[%emt 0:00:02]} 39. Ne5 {[%emt 0:00:00]} ({But not} 39. Na3 Ra2 40. Nc4 Bxe3 41. Nxe3 Rd3 $16) 39... Bxe3 {[%emt 0:00:06]} 40. fxe3 {[%emt 0:00:02][%cal Oh1h8]} f6 {[%emt 0:00:03]} 41. Ng4 {[%emt 0:00:02]} Kf7 {[%emt 0:00:04]} 42. e5 $1 {[%emt 0:00:02]} Ke6 {[%emt 0:00:06]} 43. exf6 {[%emt 0:00:03]} gxf6 {[%emt 0:00:01]} 44. Rh6 {[%emt 0:00:01]} Rf8 {[%emt 0:00:02]} 45. Ne4 {[%emt 0:00:01]} Ke7 $1 {[%emt 0:00:06]} 46. Rxf6 {[%emt 0:00:10]} (46. Nexf6 $5 Rc6 $8 47. Rh7+ Kd8 48. Rd7+ Kc8 49. Rg7 Rfxf6+ 50. Nxf6 Rxf6+ 51. Ke4 $16) 46... Rxf6+ {[%emt 0:00:02]} 47. Nexf6 {[%emt 0:00:02]} Ke6 {[%emt 0:00:06]} 48. Ne4 {[%emt 0:00:01]} Ra2 {[%emt 0:00:04]} 49. Ngf2 {[%emt 0:00:02]} g4+ {[%emt 0:00:04]} 50. Kxg4 {[%emt 0:00:03]} Ra3 {[%emt 0:00:01] [#]} 51. Nd3 $1 {[%emt 0:00:01]} Rxd3 {[%emt 0:00:02]} 52. Nc5+ {[%emt 0:00:01]} Ke5 {[%emt 0:00:01]} 53. Nxd3+ {[%emt 0:00:02]} Ke4 {[%emt 0:00:00]} 54. Nf2+ $1 {[%emt 0:00:01]} Kxe3 {[%emt 0:00:01]} 1/2-1/2

[Event "CCT Final-RR 2024"]
[Site "Oslo"]
[Date "2024.12.18"]
[Round "5"]
[White "Nepomniachtchi, Ian"]
[Black "Lazavik, Denis"]
[Result "1-0"]
[ECO "C55"]
[WhiteElo "2755"]
[BlackElo "2578"]
[Annotator "TA"]
[PlyCount "101"]
[EventDate "2024.12.11"]
[EventType "tourn"]
[EventCountry "NOR"]
[SourceTitle "playchess.com"]
[Source "ChessBase"]
[SourceQuality "1"]
[TimeControl "600+2"]

{[%evp 35,101,0,0,0,0,0,0,-17,-22,-26,0,-8,8,-7,-12,-13,-10,-11,0,-8,0,0,0,0,7,4,1,0,0,0,29,20,20,22,68,32,162,162,154,145,181,170,369,362,358,338,561,529,622,576,602,586,949,900,5587,5536,29974,29975,29978,29979,29987,29988,29992,29992,29995,29996,29997,784]} 1. e4 {[%emt 0:00:03]} e5 {[%emt 0:00:02]} 2. Nf3 {[%emt 0:00:01]} Nc6 {[%emt 0:00:02]} 3. Bc4 {[%emt 0:00:01]} Nf6 {[%emt 0:00:02]} 4. d3 {[%emt 0:00:00]} Be7 {[%emt 0:00:02]} 5. O-O {[%emt 0:00:02]} O-O {[%emt 0:00:02]} 6. a4 {[%emt 0:00:02]} d5 {[%emt 0:00:07]} 7. exd5 {[%emt 0:00:03]} Nxd5 {[%emt 0:00:02]} 8. h3 {[%emt 0:00:15]} Kh8 {[%emt 0:01:28]} 9. Re1 {[%emt 0:01:06]} f6 {[%emt 0:01:40]} 10. a5 {[%emt 0:00:02]} Bf5 {[%emt 0:00:02]} 11. Nbd2 {[%emt 0:00:32]} a6 {[%emt 0:00:23]} 12. Nb3 {[%emt 0:00:02]} b5 {[%emt 0:01:23]} 13. axb6 {[%emt 0:01:34]} Nxb6 {[%emt 0:00:02]} 14. Nfd2 {[%emt 0:00:08]} Nxc4 {[%emt 0:00:08]} 15. Nxc4 {[%emt 0:00:00]} Be6 {[%emt 0:00:06]} 16. Be3 {[%emt 0:00:20]} Qd5 {[%emt 0:00:15]} 17. Nbd2 {[%emt 0:00:02]} f5 {[%emt 0:00:28]} 18. f3 {[%emt 0:00:02]} Bh4 {[%emt 0:00:23]} 19. Rf1 {[%emt 0:00:01]} a5 {[%emt 0:00:22]} 20. Bf2 {[%emt 0:00:01]} Bf6 {[%emt 0:00:08]} 21. Re1 {[%emt 0:00:45]} a4 {[%emt 0:00:17]} 22. Nb1 {[%emt 0:00:02]} Qd7 {[%emt 0:00:22]} 23. Nc3 {[%emt 0:00:03]} e4 {[%emt 0:00:29]} 24. Nxa4 {[%emt 0:00:14]} (24. dxe4 $2 Qxd1 25. Rexd1 Bxc3 (25... Bxc4 $2 26. Rxa4 Rxa4 27. Nxa4 $19) 26. bxc3 Bxc4 $19) 24... Bxc4 {[%emt 0:00:02]} 25. dxc4 {[%emt 0:00:19]} Qxd1 {[%emt 0:00:01]} 26. Rexd1 {[%emt 0:00:01]} exf3 {[%emt 0:00:01]} 27. c3 {[%emt 0:01:12]} fxg2 {[%emt 0:00:19]} (27... Kg8 {simplifies} 28. Nc5 Rxa1 29. Rxa1 Rd8) 28. Nc5 {[%emt 0:00:01]} Rxa1 {[%emt 0:00:23]} 29. Rxa1 {[%emt 0:00:00]} Ne5 {[%emt 0:00:01]} 30. Ne6 {[%emt 0:00:13]} Rc8 {[%emt 0:00:06]} 31. c5 {[%emt 0:00:19]} Kg8 {[%emt 0:00:17]} 32. Ra7 {[%emt 0:00:08]} c6 {[%emt 0:00:27]} 33. Kxg2 {[%emt 0:00:02]} Re8 {[%emt 0:00:06]} 34. Nd4 {[%emt 0:00:09]} Nd3 {[%emt 0:00:03]} (34... f4 $11) 35. b4 {[%emt 0:00:08]} (35. Nxf5 $2 Re2 36. Ra8+ Kf7 37. Nd6+ Ke6 $19 (37... Kg6 38. Kf3 $17)) 35... Re4 {[%emt 0:00:29] [#]} ({Black should play} 35... g5 $14) 36. b5 $1 $18 {[%emt 0:00:07]} (36. Nxf5 Re2 37. Ra8+ Kf7 38. Nd6+ Ke6 (38... Kg6 39. Kf3 $15) 39. Re8+ Be7 $15) (36. Nxc6 Bxc3 37. Rd7 (37. b5 Re2 $11) 37... Nxb4 38. Nxb4 Rxb4 $11) 36... cxb5 {[%emt 0:00:11] [#]} 37. c6 $1 {[%emt 0:00:01]} Re8 {[%emt 0:00:11]} ({Wrong is} 37... Nxf2 $2 38. Ra8+ (38. c7 Re8 $16) 38... Kf7 39. c7 (39. Kxf2 Re7 $14) 39... Bxd4 40. c8=Q $18 (40. c8=R $2 {loses.} Be3 $19)) 38. Nxb5 {[%emt 0:00:38]} Nxf2 $2 {[%emt 0:00:14]} (38... Nf4+ {was necessary.} 39. Kh1 Ne6) 39. Kxf2 $18 {[%emt 0:00:24]} Be5 {[%emt 0:00:01]} 40. Rd7 {[%emt 0:00:08]} h5 $2 {[%emt 0:00:10]} (40... g5 41. c7 Bxc7) 41. c4 $18 {[%emt 0:00:07]} g5 {[%emt 0:00:03]} 42. c7 {[%emt 0:00:07]} Bxc7 {[%emt 0:00:03]} 43. Nxc7 {[%emt 0:00:01]} Re4 {[%emt 0:00:01]} 44. c5 {[%emt 0:00:04]} Rc4 {[%emt 0:00:01]} 45. Ne6 {[%emt 0:00:03]} g4 {[%emt 0:00:01]} 46. hxg4 {[%emt 0:00:04]} hxg4 {[%emt 0:00:01]} 47. Kg3 {[%emt 0:00:06]} Rc3+ {[%emt 0:00:04]} 48. Kf4 {[%emt 0:00:01]} Rf3+ {[%emt 0:00:01]} 49. Ke5 {[%emt 0:00:00]} g3 {[%emt 0:00:03]} 50. Kf6 {[%emt 0:00:05]} g2 {[%emt 0:00:04]} 51. Rd8+ {[%emt 0:00:01]} 1-0

[Event "CCT Final-RR 2024"]
[Site "Oslo"]
[Date "2024.12.18"]
[Round "5"]
[White "Aronian, Levon"]
[Black "So, Wesley"]
[Result "1-0"]
[ECO "B08"]
[WhiteElo "2747"]
[BlackElo "2747"]
[Annotator "TA"]
[PlyCount "39"]
[EventDate "2024.12.11"]
[EventType "tourn"]
[EventCountry "NOR"]
[SourceTitle "playchess.com"]
[Source "ChessBase"]
[SourceQuality "1"]
[TimeControl "600+2"]

{[%evp 20,39,53,60,71,79,122,71,369,375,366,375,529,503,519,456,683,681,663,668,785,779]} 1. e4 {[%emt 0:00:01]} d6 {[%emt 0:00:06]} 2. d4 {[%emt 0:00:03]} Nf6 {[%emt 0:00:01]} 3. Nc3 {[%emt 0:00:01]} g6 {[%emt 0:00:01]} 4. Nf3 {[%emt 0:00:03]} Bg7 {[%emt 0:00:02]} 5. Be2 {[%emt 0:00:01]} O-O {[%emt 0:00:05]} 6. O-O {[%emt 0:00:01]} c6 {[%emt 0:00:10]} 7. a4 {[%emt 0:00:04]} Qc7 {[%emt 0:00:17]} 8. Be3 {[%emt 0:00:26]} e5 {[%emt 0:00:10]} 9. dxe5 {[%emt 0:00:20]} dxe5 {[%emt 0:00:02]} 10. Bc4 {[%emt 0:00:03]} Nbd7 {[%emt 0:00:38]} 11. h3 {[%emt 0:00:28]} a5 {[%emt 0:00:17]} 12. Qd2 {[%emt 0:00:20] White is much more active.} Re8 {[%emt 0:00:25]} 13. Rad1 {[%emt 0:00:12]} ({Better is} 13. Ng5 Re7 14. Rad1) 13... Bf8 $2 {[%emt 0:01:05][%mdl 8192]} (13... Nf8 $16) 14. Ng5 $18 {[%emt 0:00:10]} Re7 {[%emt 0:00:01]} 15. f4 {[%emt 0:00:01]} exf4 {[%emt 0:01:45]} (15... b6 $142 16. Ba2 h6) 16. Bxf4 {[%emt 0:00:04]} Ne5 {[%emt 0:00:11][%cal Oe5c4]} 17. Qf2 {[%emt 0:00:16]} Kg7 {[%emt 0:00:34] [#]} (17... Be6 $142) 18. Nxf7 $1 {[%emt 0:00:22][%mdl 512]} Rxf7 {[%emt 0:00:25]} 19. Bxf7 {[%emt 0:00:03]} Kxf7 {[%emt 0:00:01]} 20. Bg5 {[%emt 0:00:13]} 1-0